fUSD/lending_fUSD_20250906
["ID","MTS","AMOUNT","RATE_DAILY","PERIOD"]
[383848639,1757142649834,-401.94104722,0.00054794,120]
[383848641,1757142649843,-400.9098497,0.00054794,120]
[383848643,1757142649853,-400.0,0.00054794,120]
[383848645,1757142649863,-400.0,0.00054794,120]
[383848647,1757142649872,-400.0,0.00054794,120]
[383848649,1757142649882,-400.0,0.00054794,120]
[383848651,1757142649891,-400.0,0.00054794,120]
[383848653,1757142649901,-400.0,0.00054794,120]
[383848655,1757142649910,-400.0,0.00054794,120]
[383848657,1757142649919,-400.0,0.00054794,120]
[383848659,1757142649929,-400.0,0.00054794,120]
[383848662,1757142649948,-400.0,0.00054794,120]
[383848664,1757142649957,-408.78912492,0.00054794,120]
[383848667,1757142649967,-150.0,0.00054794,120]
[383848668,1757142649976,-400.0,0.00054794,120]
[383848670,1757142649985,-400.0,0.00054794,120]
[383848672,1757142649995,-400.0,0.00054794,120]
[383848675,1757142650004,-400.0,0.00054794,120]
[383848677,1757142650014,-400.0,0.00054794,120]
[383848678,1757142650023,-400.0,0.00054794,120]
[383848680,1757142650032,-404.16599328,0.00054794,120]
[383848682,1757142650042,-425.13,0.00054794,120]
[383848684,1757142650051,-400.0,0.00054794,120]
[383848687,1757142650060,-401.48835024,0.00054794,120]
[383848689,1757142650070,-400.0,0.00054794,120]
[383848691,1757142650080,-411.61987135,0.00054794,120]
[383848692,1757142650089,-400.0,0.00054794,120]
[383848695,1757142650100,-400.0,0.00054794,120]
[383848696,1757142650110,-400.0,0.00054794,120]
[383848698,1757142650120,-400.0,0.00054794,120]
[383848700,1757142650129,-400.0,0.00054794,120]
[383848703,1757142650139,-400.0,0.00054794,120]
[383848705,1757142650148,-401.13242533,0.00054794,120]
[383848707,1757142650158,-400.0,0.00054794,120]
[383848708,1757142650167,-400.0,0.00054794,120]
[383848710,1757142650176,-400.0,0.00054794,120]
[383848713,1757142650186,-400.0,0.00054794,120]
[383848714,1757142650196,-500.0,0.00054794,120]
[383848716,1757142650206,-500.0,0.00054794,120]
[383848718,1757142650216,-516.6759266,0.00054794,120]
[383848721,1757142650226,-400.0,0.00054794,120]
[383848722,1757142650235,-404.27568438,0.00054794,120]
[383848725,1757142650245,-400.0,0.00054794,120]
[383848727,1757142650256,-400.0,0.00054794,120]
[383848729,1757142650266,-400.0,0.00054794,120]
[383848731,1757142650275,-400.0,0.00054794,120]
[383848733,1757142650284,-400.0,0.00054794,120]
[383848735,1757142650294,-400.0,0.00054794,120]
[383848737,1757142650304,-400.0,0.00054794,120]
[383848739,1757142650313,-400.0,0.00054794,120]
[383848741,1757142650324,-400.0,0.00054794,120]
[383848743,1757142650333,-400.0,0.00054794,30]
[383848745,1757142650343,-400.0,0.00054794,120]
[383848747,1757142650352,-400.0,0.00054794,120]
[383848749,1757142650361,-400.0,0.00054794,120]
[383848751,1757142650371,-400.0,0.00054794,120]
[383848753,1757142650381,-400.0,0.00054794,120]
[383848755,1757142650390,-400.0,0.00054794,120]
[383848757,1757142650400,-400.0,0.00054794,7]
[383848759,1757142650410,-400.0,0.00054794,120]
[383848761,1757142650420,-403.257801,0.00054794,120]
[383848763,1757142650429,-400.0,0.00054794,120]
[383848765,1757142650439,-400.0,0.00054794,120]
[383848767,1757142650448,-400.0,0.00054794,120]
[383848769,1757142650458,-400.0,0.00054794,120]
[383848771,1757142650469,-400.0,0.00054794,120]
[383848773,1757142650478,-400.0,0.00054794,120]
[383848775,1757142650488,-398.04952818,0.00054794,120]
[383848777,1757142650497,-500.0,0.00054794,120]
[383848779,1757142650507,-400.03305274,0.00054794,120]
[383848781,1757142650517,-400.0,0.00054794,120]
[383848783,1757142650526,-506.64214547,0.00054794,120]
[383848785,1757142650536,-400.0,0.00054794,120]
[383848787,1757142650545,-407.76709529,0.00054794,120]
[383848789,1757142650554,-400.0,0.00054794,120]
[383848790,1757142650563,-400.0,0.00054794,120]
[383848793,1757142650573,-400.0,0.00054794,120]
[383848794,1757142650582,-400.0,0.00054794,120]
[383848796,1757142650591,-400.0,0.00054794,120]
[383848799,1757142650601,-400.0,0.00054794,120]
[383848800,1757142650610,-400.0,0.00054794,120]
[383848802,1757142650619,-400.0,0.00054794,120]
[383848804,1757142650628,-400.0,0.00054794,120]
[383848806,1757142650638,-407.44052194,0.00054794,120]
[383848808,1757142650647,-400.0,0.00054794,120]
[383848811,1757142650657,-402.0911143,0.00054794,120]
[383848812,1757142650666,-400.0,0.00054794,120]
[383848815,1757142650676,-400.0,0.00054794,120]
[383848816,1757142650686,-403.13050117,0.00054794,120]
[383848818,1757142650695,-400.0,0.00054794,120]
[383848820,1757142650705,-400.0,0.00054794,120]
[383848822,1757142650715,-400.0,0.00054794,120]
[383848824,1757142650724,-400.0,0.00054794,120]
[383848826,1757142650734,-400.0,0.00054794,120]
[383848828,1757142650743,-401.23676882,0.00054794,120]
[383848830,1757142650752,-406.97385064,0.00054794,120]
[383848833,1757142650761,-403.7739818,0.00054794,120]
[383848835,1757142650771,-400.0,0.00054794,120]
[383848836,1757142650781,-400.0,0.00054794,120]
[383848838,1757142650790,-404.30099509,0.00054794,120]
[383848840,1757142650800,-400.0,0.00054794,120]
[383848843,1757142650809,-400.0,0.00054794,120]
[383848844,1757142650819,-402.07261156,0.00054794,120]
[383848846,1757142650828,-400.0,0.00054794,120]
[383848848,1757142650838,-400.0,0.00054794,120]
[383848851,1757142650847,-401.44975353,0.00054794,120]
[383848852,1757142650857,-493.60117124,0.00054794,120]
[383848855,1757142650866,-400.0,0.00054794,120]
[383848856,1757142650876,-410.0004413,0.00054794,120]
[383848858,1757142650885,-418.08515781,0.00054794,120]
[383848860,1757142650895,-401.85622565,0.00054794,120]
[383848862,1757142650904,-400.0,0.00054794,120]
[383848864,1757142650913,-400.0,0.00054794,120]
[383848866,1757142650922,-400.0,0.00054794,120]
[383848868,1757142650932,-405.92104211,0.00054794,120]
[383848870,1757142650941,-400.0,0.00054794,120]
[383848873,1757142650951,-400.0,0.00054794,120]
[383848875,1757142650960,-400.0,0.00054794,120]
[383848876,1757142650970,-400.0,0.00054794,120]
[383848879,1757142650979,-400.0,0.00054794,120]
[383848880,1757142650988,-400.0,0.00054794,120]
[383848881,1757142650997,-400.0,0.00054794,120]
[383848882,1757142651005,-400.0,0.00054794,120]
[383848883,1757142651014,-404.31756415,0.00054794,120]
[383848884,1757142651023,-400.0,0.00054794,120]
[383848885,1757142651032,-400.0,0.00054794,120]
[383848886,1757142651041,-400.0,0.00054794,120]
[383848887,1757142651050,-400.0,0.00054794,120]
[383848888,1757142651059,-400.0,0.00054794,120]
[383848889,1757142651068,-400.0,0.00054794,120]
[383848890,1757142651077,-408.68214387,0.00054794,120]
[383848892,1757142651086,-400.0,0.00054794,120]
[383848894,1757142651095,-400.0,0.00054794,120]
[383848896,1757142651104,-400.0,0.00054794,120]
[383848898,1757142651114,-250.01227704,0.00054794,120]
[383848900,1757142651123,-400.0,0.00054794,120]
[383848901,1757142651134,-188.90024459,0.00054794,120]
[383848903,1757142651143,-400.0,0.00054794,120]
[383848905,1757142651152,-400.0,0.00054794,120]
[383848908,1757142651162,-400.0,0.00054794,120]
[383848910,1757142651171,-409.02456264,0.00054794,120]
[383848911,1757142651180,-400.0,0.00054794,120]
[383848913,1757142651189,-400.0,0.00054794,120]
[383848916,1757142651199,-400.0,0.00054794,120]
[383848917,1757142651209,-400.0,0.00054794,120]
[383848920,1757142651218,-400.0,0.00054794,120]
[383848922,1757142651228,-400.0,0.00054794,120]
[383848924,1757142651237,-400.0,0.00054794,120]
[383848926,1757142651247,-400.0,0.00054794,120]
[383848928,1757142651256,-400.0,0.00054794,120]
[383848930,1757142651265,-400.0,0.00054794,120]
[383848932,1757142651275,-400.0,0.00054794,120]
[383848934,1757142651284,-406.3871822,0.00054794,120]
[383848936,1757142651294,-501.68,0.00054794,120]
[383848938,1757142651303,-401.36461691,0.00054794,120]
[383848940,1757142651313,-400.0,0.00054794,120]
[383848942,1757142651323,-400.0,0.00054794,120]
[383848944,1757142651332,-400.0,0.00054794,120]
[383848946,1757142651341,-406.16588123,0.00054794,120]
[383848948,1757142651350,-400.0,0.00054794,120]
[383848950,1757142651360,-400.0,0.00054794,120]
[383848952,1757142651369,-404.57273412,0.00054794,120]
[383848954,1757142651378,-400.0,0.00054794,120]
[383848956,1757142651387,-400.0,0.00054794,120]
[383848958,1757142651397,-400.0,0.00054794,120]
[383848960,1757142651406,-400.0,0.00054794,120]
[383848962,1757142651416,-400.0,0.00054794,120]
[383848964,1757142651425,-400.0,0.00054794,120]
[383848966,1757142651435,-402.63829343,0.00054794,120]
[383848968,1757142651445,-400.0,0.00054794,120]
[383848970,1757142651455,-400.0,0.00054794,120]
[383848972,1757142651464,-400.0,0.00054794,120]
[383848974,1757142651473,-404.30854822,0.00054794,120]
[383848976,1757142651486,-400.0,0.00054794,120]
[383848978,1757142651495,-400.0,0.00054794,120]
[383848980,1757142651504,-400.0,0.00054794,120]
[383848982,1757142651513,-400.0,0.00054794,120]
[383848984,1757142651522,-400.0,0.00054794,120]
[383848986,1757142651533,-400.0,0.00054794,120]
[383848988,1757142651542,-400.0,0.00054794,120]
[383848990,1757142651551,-400.0,0.00054794,120]
[383848992,1757142651560,-400.0,0.00054794,120]
[383848994,1757142651569,-400.0,0.00054794,120]
[383848996,1757142651579,-151.0,0.00054794,120]
[383848998,1757142651588,-400.0,0.00054794,120]
[383849000,1757142651597,-401.90744707,0.00054794,120]
[383849002,1757142651606,-409.37145283,0.00054794,120]
[383849004,1757142651615,-400.0,0.00054794,120]
[383849006,1757142651625,-405.59699409,0.00054794,120]
[383849008,1757142651634,-400.0,0.00054794,120]
[383849010,1757142651643,-403.6045038,0.00054794,120]
[383849012,1757142651652,-400.0,0.00054794,120]
[383849014,1757142651663,-400.0,0.00054794,120]
[383849016,1757142651673,-400.0,0.00054794,120]
[383849018,1757142651683,-400.0,0.00054794,120]
[383849020,1757142651692,-404.63498774,0.00054794,120]
[383849022,1757142651702,-400.0,0.00054794,120]
[383849024,1757142651711,-400.0,0.00054794,120]
[383849026,1757142651721,-1010.18922285,0.00054794,120]
[383849028,1757142651730,-521.63382537,0.00054794,120]
[383849030,1757142651739,-566.66,0.00054794,120]
[383849032,1757142651748,-400.0,0.00054794,120]
[383849034,1757142651758,-400.0,0.00054794,120]
[383849036,1757142651767,-400.0,0.00054794,120]
[383849038,1757142651776,-404.54027275,0.00054794,120]
[383849040,1757142651786,-400.0,0.00054794,120]
[383849042,1757142651795,-409.1155206,0.00054794,120]
[383849044,1757142651804,-400.0,0.00054794,120]
[383849046,1757142651814,-406.63665391,0.00054794,120]
[383849048,1757142651823,-401.78347757,0.00054794,120]
[383849050,1757142651832,-400.0,0.00054794,120]
[383849052,1757142651842,-406.45781666,0.00054794,120]
[383849054,1757142651852,-400.0,0.00054794,120]
[383849056,1757142651861,-543.54444181,0.00054794,120]
[383849058,1757142651870,-400.0,0.00054794,120]
[383849060,1757142651879,-400.0,0.00054794,120]
[383849062,1757142651889,-400.0,0.00054794,120]
[383849064,1757142651899,-151.0,0.00054794,120]
[383849066,1757142651908,-400.0,0.00054794,120]
[383849068,1757142651918,-404.77216402,0.00054794,120]
[383849070,1757142651927,-400.0,0.00054794,120]
[383849072,1757142651936,-400.0,0.00054794,120]
[383849074,1757142651946,-283.60746874,0.00054794,120]
[383849076,1757142651955,-400.0,0.00054794,120]
[383849078,1757142651964,-154.401558,0.00054794,120]
[383849080,1757142651974,-400.0,0.00054794,120]
[383849082,1757142651984,-194.598617,0.00054794,120]
[383849084,1757142651994,-151.0,0.00054794,120]
[383849103,1757142652003,-403.44796719,0.00054794,120]
[383849106,1757142652175,-400.0,0.00054794,120]
[383849108,1757142652185,-194.598617,0.00054794,120]
[383849110,1757142652194,-151.0,0.00054794,120]
[383849112,1757142652203,-407.04950786,0.00054794,120]
[383849114,1757142652213,-400.0,0.00054794,120]
[383849115,1757142652222,-400.0,0.00054794,120]
[383849118,1757142652232,-405.02238253,0.00054794,120]
[383849120,1757142652241,-194.598617,0.00054794,120]
[383849122,1757142652251,-151.0,0.00054794,120]
[383849124,1757142652260,-400.0,0.00054794,120]
[383849126,1757142652269,-151.0,0.00054794,120]
[383849128,1757142652279,-400.0,0.00054794,30]
[383849130,1757142652288,-400.0,0.00054794,120]
[383849132,1757142652297,-400.0,0.00054794,120]
[383849134,1757142652306,-194.598617,0.00054794,120]
[383849136,1757142652316,-151.0,0.00054794,120]
[383849138,1757142652325,-402.63045624,0.00054794,120]
[383849140,1757142652334,-400.0,0.00054794,120]
[383849142,1757142652343,-400.0,0.00054794,120]
[383849144,1757142652352,-400.0,0.00054794,120]
[383849146,1757142652362,-400.0,0.00054794,120]
[383849148,1757142652371,-400.0,0.00054794,120]
[383849150,1757142652380,-400.0,0.00054794,120]
[383849152,1757142652389,-151.0,0.00054794,120]
[383849154,1757142652398,-400.0,0.00054794,120]
[383849156,1757142652408,-169.29317851,0.00054794,120]
[383849158,1757142652418,-151.0,0.00054794,120]
[383849160,1757142652428,-400.0,0.00054794,120]
[383849162,1757142652437,-400.0,0.00054794,120]
[383849164,1757142652446,-400.0,0.00054794,120]
[383849166,1757142652456,-402.35996403,0.00054794,120]
[383849168,1757142652465,-400.0,0.00054794,120]
[383849170,1757142652478,-400.0,0.00054794,120]
[383849172,1757142652487,-400.0,0.00054794,120]
[383849174,1757142652497,-400.0,0.00054794,120]
[383849176,1757142652506,-411.20969603,0.00054794,120]
[383849178,1757142652515,-400.0,0.00054794,120]
[383849180,1757142652524,-400.0,0.00054794,120]
[383849182,1757142652533,-403.53955868,0.00054794,120]
[383849184,1757142652542,-536.34341479,0.00054794,120]
[383849186,1757142652551,-400.0,0.00054794,120]
[383849188,1757142652560,-400.0,0.00054794,120]
[383849190,1757142652571,-400.0,0.00054794,120]
[383849192,1757142652580,-402.08991742,0.00054794,120]
[383849193,1757142652589,-400.0,0.00054794,120]
[383849196,1757142652599,-402.51023451,0.00054794,120]
[383849197,1757142652609,-400.0,0.00054794,120]
[383849199,1757142652618,-400.0,0.00054794,120]
[383849202,1757142652628,-400.0,0.00054794,120]
[383849204,1757142652637,-400.0,0.00054794,120]
[383849205,1757142652647,-400.0,0.00054794,120]
[383849207,1757142652656,-156.380816,0.00054794,120]
[383849209,1757142652665,-400.0,0.00054794,120]
[383849211,1757142652675,-514.33,0.00054794,120]
[383849214,1757142652685,-400.0,0.00054794,120]
[383849215,1757142652695,-402.55448475,0.00054794,120]
[383849217,1757142652704,-400.0,0.00054794,120]
[383849220,1757142652714,-401.420783,0.00054794,120]
[383849221,1757142652724,-400.0,0.00054794,120]
[383849223,1757142652733,-409.06995749,0.00054794,120]
[383849226,1757142652743,-406.01349916,0.00054794,120]
[383849227,1757142652754,-400.0,0.00054794,120]
[383849229,1757142652763,-400.0,0.00054794,120]
[383849231,1757142652773,-400.0,0.00054794,120]
[383849233,1757142652783,-408.66251859,0.00054794,120]
[383849235,1757142652792,-406.94563464,0.00054794,120]
[383849237,1757142652802,-400.0,0.00054794,120]
[383849240,1757142652811,-402.41479802,0.00054794,120]
[383849242,1757142652820,-403.44386257,0.00054794,120]
[383849244,1757142652829,-400.0,0.00054794,120]
[383849246,1757142652839,-408.9049616,0.00054794,120]
[383849247,1757142652848,-400.0,0.00054794,120]
[383849250,1757142652857,-151.471257,0.00054794,120]
[383849251,1757142652867,-400.0,0.00054794,120]
[383849253,1757142652877,-406.10464538,0.00054794,120]
[383849255,1757142652886,-400.0,0.00054794,120]
[383849258,1757142652895,-406.51447712,0.00054794,120]
[383849259,1757142652904,-408.11833514,0.00054794,120]
[383849262,1757142652914,-400.0,0.00054794,120]
[383849263,1757142652924,-411.03993339,0.00054794,120]
[383849265,1757142652933,-400.0,0.00054794,120]
[383849268,1757142652946,-561.53,0.00054794,120]
[383849269,1757142652957,-405.40417943,0.00054794,120]
[383849272,1757142652967,-400.0,0.00054794,120]
[383849274,1757142652976,-402.6770097,0.00054794,120]
[383849275,1757142652986,-400.0,0.00054794,120]
[383849276,1757142652995,-396.27870563,0.00054794,120]
[383849277,1757142653004,-1015.00678231,0.00054794,120]
[383849278,1757142653014,-400.0,0.00054794,120]
[383849279,1757142653023,-400.0,0.00054794,120]
[383849280,1757142653034,-405.50983772,0.00054794,120]
[383849281,1757142653043,-402.59122722,0.00054794,120]
[383849282,1757142653053,-405.72127462,0.00054794,120]
[383849283,1757142653064,-400.0,0.00054794,120]
[383849285,1757142653081,-400.0,0.00054794,120]
[383849287,1757142653090,-404.24959681,0.00054794,120]
[383849289,1757142653099,-400.0,0.00054794,120]
[383849291,1757142653109,-400.0,0.00054794,120]
[383849293,1757142653118,-400.0,0.00054794,120]
[383849295,1757142653128,-151.0,0.00054794,120]
[383849297,1757142653138,-400.0,0.00054794,120]
[383849299,1757142653148,-400.0,0.00054794,120]
[383849301,1757142653159,-151.0,0.00054794,120]
[383849303,1757142653168,-400.0,0.00054794,120]
[383849305,1757142653178,-400.0,0.00054794,120]
[383849307,1757142653187,-401.32328301,0.00054794,120]
[383849309,1757142653196,-403.22330455,0.00054794,120]
[383849311,1757142653206,-400.0,0.00054794,120]
[383849313,1757142653215,-403.8123512,0.00054794,120]
[383849315,1757142653224,-400.92535092,0.00054794,120]
[383849317,1757142653234,-411.22647143,0.00054794,120]
[383849319,1757142653244,-404.63425193,0.00054794,120]
[383849321,1757142653253,-400.0,0.00054794,120]
[383849323,1757142653263,-400.0,0.00054794,120]
[383849325,1757142653273,-400.0,0.00054794,120]
[383849327,1757142653283,-400.0,0.00054794,120]
[383849329,1757142653293,-400.0,0.00054794,120]
[383849331,1757142653302,-404.1895971,0.00054794,120]
[383849333,1757142653311,-400.0,0.00054794,120]
[383849335,1757142653321,-404.58649939,0.00054794,120]
[383849337,1757142653331,-659.946177,0.00054794,120]
[383849339,1757142653340,-404.39511857,0.00054794,120]
[383849341,1757142653350,-294.5260188,0.00054794,120]
[383849343,1757142653359,-400.0,0.00054794,120]
[383849345,1757142653368,-659.946177,0.00054794,120]
[383849347,1757142653377,-404.58774793,0.00054794,120]
[383849349,1757142653387,-406.81971542,0.00054794,120]
[383849351,1757142653396,-400.0,0.00054794,120]
[383849353,1757142653405,-400.0,0.00054794,120]
[383849355,1757142653415,-400.0,0.00054794,120]
[383849357,1757142653424,-659.946177,0.00054794,120]
[383849359,1757142653433,-400.0,0.00054794,120]
[383849361,1757142653443,-659.946177,0.00054794,120]
[383849363,1757142653452,-408.67552761,0.00054794,120]
[383849365,1757142653462,-151.0,0.00054794,120]
[383849367,1757142653472,-405.29541325,0.00054794,120]
[383849369,1757142653483,-400.0,0.00054794,120]
[383849371,1757142653493,-400.0,0.00054794,120]
[383849373,1757142653502,-400.0,0.00054794,120]
[383849375,1757142653511,-400.0,0.00054794,120]
[383849377,1757142653520,-420.39019592,0.00054794,120]
[383849379,1757142653529,-400.0,0.00054794,120]
[383849381,1757142653540,-406.68100779,0.00054794,120]
[383849383,1757142653549,-400.0,0.00054794,120]
[383849385,1757142653559,-408.97573399,0.00054794,120]
[383849387,1757142653567,-404.9281098,0.00054794,120]
[383849389,1757142653577,-400.0,0.00054794,120]
[383849391,1757142653586,-447.74,0.00054794,120]
[383849393,1757142653595,-406.41565089,0.00054794,120]
[383849395,1757142653605,-400.0,0.00054794,120]
[383849397,1757142653614,-405.70294447,0.00054794,120]
[383849399,1757142653623,-444.131247,0.00054794,120]
[383849401,1757142653633,-151.0,0.00054794,120]
[383849403,1757142653642,-400.0,0.00054794,120]
[383849405,1757142653651,-151.0,0.00054794,120]
[383849407,1757142653661,-400.0,0.00054794,120]
[383849409,1757142653671,-444.131247,0.00054794,120]
[383849411,1757142653680,-400.0,0.00054794,120]
[383849413,1757142653689,-400.0,0.00054794,120]
[383849415,1757142653698,-444.131247,0.00054794,120]
[383849417,1757142653708,-400.0,0.00054794,120]
[383849419,1757142653718,-400.0,0.00054794,120]
[383849421,1757142653727,-151.0,0.00054794,120]
[383849423,1757142653737,-400.0,0.00054794,120]
[383849425,1757142653746,-444.131247,0.00054794,120]
[383849427,1757142653756,-151.0,0.00054794,120]
[383849429,1757142653767,-500.0,0.00054794,2]
[383849431,1757142653777,-400.0,0.00054794,120]
[383849434,1757142653787,-500.0,0.00054794,2]
[383849435,1757142653797,-510.86915167,0.00054794,2]
[383849438,1757142653807,-400.0,0.00054794,120]
[383849439,1757142653816,-400.0,0.00054794,120]
[383849442,1757142653826,-163.2709678,0.00054794,120]
[383849444,1757142653835,-400.0,0.00054794,120]
[383849446,1757142653845,-400.0,0.00054794,120]
[383849448,1757142653855,-400.0,0.00054794,120]
[383849450,1757142653865,-400.0,0.00054794,120]
[383849452,1757142653875,-400.0,0.00054794,120]
[383849454,1757142653884,-401.30454358,0.00054794,120]
[383849456,1757142653893,-400.0,0.00054794,120]
[383849458,1757142653905,-500.0,0.00054794,2]
[383849460,1757142653914,-500.0,0.00054794,2]
[383849462,1757142653923,-502.329652,0.00054794,2]
[383849464,1757142653932,-262.482971,0.00054794,120]
[383849466,1757142653941,-401.44247512,0.00054794,120]
[383849468,1757142653951,-400.0,0.00054794,120]
[383849470,1757142653959,-319.86737522,0.00054794,120]
[383849472,1757142653970,-400.0,0.00054794,120]
[383849474,1757142653979,-403.81241923,0.00054794,120]
[383849476,1757142653989,-262.482971,0.00054794,120]
[383849478,1757142653999,-423.31570523,0.00054794,120]
[383849480,1757142654008,-402.32200901,0.00054794,120]
[383849482,1757142654017,-425.45,0.00054794,120]
[383849484,1757142654027,-400.0,0.00054794,120]
[383849486,1757142654037,-262.482971,0.00054794,120]
[383849488,1757142654047,-400.0,0.00054794,120]
[383849490,1757142654057,-400.0,0.00054794,120]
[383849492,1757142654066,-152.717781,0.00054794,120]
[383849494,1757142654076,-400.0,0.00054794,120]
[383849496,1757142654085,-400.0,0.00054794,120]
[383849498,1757142654095,-400.0,0.00054794,120]
[383849500,1757142654105,-262.482971,0.00054794,120]
[383849502,1757142654114,-410.10107919,0.00054794,120]
[383849504,1757142654123,-475.83,0.00054794,120]
[383849506,1757142654133,-404.99039767,0.00054794,120]
[383849508,1757142654142,-400.0,0.00054794,120]
[383849510,1757142654151,-400.0,0.00054794,120]
[383849512,1757142654160,-401.53276471,0.00054794,120]
[383849514,1757142654171,-400.0,0.00054794,120]
[383849516,1757142654181,-400.0,0.00054794,120]
[383849518,1757142654190,-402.31304874,0.00054794,120]
[383849520,1757142654200,-403.0286047,0.00054794,120]
[383849522,1757142654211,-400.0,0.00054794,120]
[383849524,1757142654220,-403.67009802,0.00054794,120]
[383849526,1757142654229,-400.0,0.00054794,120]
[383849528,1757142654238,-469.80641913,0.00054794,120]
[383849530,1757142654248,-500.0,0.00054794,120]
[383849532,1757142654258,-406.67182848,0.00054794,120]
[383849534,1757142654267,-500.0,0.00054794,120]
[383849536,1757142654277,-151.0,0.00054794,120]
[383849538,1757142654287,-400.0,0.00054794,120]
[383849540,1757142654296,-500.0,0.00054794,120]
[383849542,1757142654305,-406.34832015,0.00054794,120]
[383849544,1757142654315,-509.49523899,0.00054794,120]
[383849546,1757142654324,-400.0,0.00054794,120]
[383849548,1757142654333,-248.534305,0.00054794,120]
[383849550,1757142654343,-406.77618177,0.00054794,120]
[383849552,1757142654353,-410.76008326,0.00054794,120]
[383849554,1757142654362,-400.0,0.00054794,120]
[383849556,1757142654371,-500.0,0.00054794,120]
[383849558,1757142654380,-400.0,0.00054794,120]
[383849560,1757142654390,-401.13513942,0.00054794,120]
[383849562,1757142654399,-403.95498455,0.00054794,120]
[383849564,1757142654409,-400.0,0.00054794,120]
[383849566,1757142654419,-404.72081082,0.00054794,120]
[383849568,1757142654429,-400.0,0.00054794,120]
[383849570,1757142654438,-400.0,0.00054794,120]
[383849572,1757142654448,-477.62962745,0.00054794,120]
[383849574,1757142654457,-151.0,0.00054794,120]
[383849576,1757142654467,-247.0815,0.00054794,120]
[383849578,1757142654479,-400.0,0.00054794,120]
[383849580,1757142654489,-401.7375854,0.00054794,120]
[383849583,1757142654499,-338.883,0.00054794,120]
[383849584,1757142654508,-400.0,0.00054794,120]
[383849587,1757142654518,-247.0815,0.00054794,120]
[383849588,1757142654527,-415.53538606,0.00054794,120]
[383849590,1757142654536,-400.0,0.00054794,120]
[383849592,1757142654546,-338.883,0.00054794,120]
[383849594,1757142654556,-747.978665,0.00054794,120]
[383849596,1757142654565,-400.0,0.00054794,120]
[383849598,1757142654576,-247.0815,0.00054794,120]
[383849601,1757142654586,-151.0,0.00054794,120]
[383849602,1757142654595,-414.18140173,0.00054794,120]
[383849605,1757142654605,-400.0,0.00054794,120]
[383849607,1757142654614,-338.883,0.00054794,120]
[383849609,1757142654623,-400.0,0.00054794,120]
[383849611,1757142654636,-247.0815,0.00054794,120]
[383849612,1757142654646,-747.978665,0.00054794,120]
[383849614,1757142654655,-338.883,0.00054794,120]
[383849617,1757142654666,-417.11753675,0.00054794,120]
[383849618,1757142654676,-406.61819154,0.00054794,120]
[383849620,1757142654685,-747.978665,0.00054794,120]
[383849622,1757142654695,-400.0,0.00054794,120]
[383849625,1757142654704,-339.481056,0.00054794,120]
[383849627,1757142654714,-285.72311906,0.00054794,120]
[383849629,1757142654724,-400.0,0.00054794,120]
[383849630,1757142654733,-400.0,0.00054794,120]
[383849632,1757142654743,-747.978665,0.00054794,120]
[383849634,1757142654752,-339.481056,0.00054794,120]
[383849636,1757142654762,-151.0,0.00054794,120]
[383849638,1757142654771,-426.56057767,0.00054794,120]